bitfinex/quotes_BTCUSD_20251224
["timestamp","ask_amount","ask_price","bid_price","bid_amount"]
[1766590493334,0.00055,87157.0,87155.0,0.01156]
[1766590493565,0.00010624,87157.0,87155.0,0.01156]
[1766590494002,0.00010624,87157.0,87156.0,0.05736839]
[1766590494203,0.26441906,87165.0,87159.0,0.01147328]
[1766590494359,0.00011,87169.0,87159.0,0.01147328]
[1766590495133,0.00011,87169.0,87155.0,0.01156]
[1766590495315,0.000549,87159.0,87155.0,0.01156]
[1766590495450,0.06883525,87165.0,87150.0,0.06327546]
[1766590495659,0.01147288,87162.0,87155.0,0.0116]
[1766590495874,0.00055,87155.0,87154.0,0.0116]
[1766590496096,0.00055,87155.0,87144.0,0.02307525]
[1766590496296,0.00010618,87155.0,87148.0,0.01147473]
[1766590496506,0.0116,87161.0,87155.0,0.01147381]
[1766590496901,0.01147328,87159.0,87145.0,0.01147512]
[1766590497116,0.000549,87155.0,87145.0,0.00010618]
[1766590497545,0.33483244,87156.0,87145.0,0.00010618]
[1766590497723,0.01147394,87154.0,87145.0,0.00010618]
[1766590497942,0.33483208,87156.0,87145.0,0.00010618]
[1766590498142,0.0114742,87152.0,87145.0,1.8e-07]
[1766590498370,0.01147407,87153.0,87145.0,1.8e-07]
[1766590498854,0.0114742,87152.0,87145.0,1.8e-07]
[1766590499097,0.0114742,87152.0,87128.0,0.05738662]
[1766590499098,0.01147539,87143.0,87128.0,0.05738662]
[1766590499283,0.0116,87143.0,87127.0,0.22954996]
[1766590499483,0.0116,87146.0,87140.0,4.57e-06]
[1766590499697,0.0116,87151.0,87145.0,0.01147512]
[1766590500118,0.0116,87151.0,87140.0,0.01148035]
[1766590500361,0.0116,87151.0,87141.0,0.01147565]
[1766590500571,0.0116,87151.0,87145.0,0.01147512]
[1766590500783,0.00011,87156.0,87148.0,0.01147473]
[1766590500784,0.01171,87156.0,87148.0,0.01147473]
[1766590500964,0.00011,87156.0,87146.0,0.0116]
[1766590501162,0.00011,87156.0,87140.0,0.46097467]
[1766590501163,0.01147473,87148.0,87140.0,4.57e-06]
[1766590501366,0.001099,87146.0,87140.0,4.57e-06]
[1766590501569,0.01147512,87145.0,87137.0,4.57e-06]
[1766590501772,0.0116,87149.0,87138.0,0.01147604]
[1766590502138,0.0116,87149.0,87140.0,0.01147578]
[1766590502339,0.0688518,87144.0,87137.0,0.0001062]
[1766590502539,0.05738359,87133.0,87131.0,0.0116]
[1766590502744,0.01147736,87128.0,87112.0,0.00011]
[1766590502974,0.01147749,87127.0,87118.0,0.0116]
[1766590503174,0.0114771,87130.0,87118.0,0.01170602]
[1766590503386,0.01147776,87125.0,87118.0,0.00010602]
[1766590503784,0.01147763,87126.0,87118.0,0.00010602]
[1766590504034,0.01147631,87136.0,87118.0,0.00010602]
[1766590504276,0.06886191,87131.0,87118.0,0.00010602]
[1766590504420,0.02307644,87135.0,87121.0,0.05739118]
[1766590504622,0.0116,87135.0,87121.0,0.01147828]
[1766590504821,0.27393446,87150.0,87135.0,0.000553]
[1766590505270,0.26246,87150.0,87133.0,0.0114767]
[1766590505505,0.03219964,87159.0,87146.0,0.01147499]
[1766590505732,0.0116,87166.0,87159.0,0.01147328]
[1766590505929,0.0116,87172.0,87163.0,0.01147275]
[1766590506143,0.000546,87163.0,87156.0,0.00011]
[1766590506350,0.01147394,87154.0,87134.0,0.01147657]
[1766590506557,0.27406,87153.0,87134.0,0.0116]
[1766590506788,0.0116,87153.0,87135.0,0.0116]
[1766590506996,0.0116,87153.0,87145.0,0.01147512]
[1766590507208,0.0116,87153.0,87141.0,0.01147565]
[1766590507620,0.0116,87153.0,87144.0,0.01147525]
[1766590507859,0.02307407,87153.0,87137.0,0.01147618]
[1766590508034,0.02307407,87153.0,87136.0,0.01147631]
[1766590508035,0.0114746,87149.0,87136.0,0.01147631]
[1766590508243,0.05737192,87151.0,87136.0,0.01147631]
[1766590508443,0.0114746,87149.0,87136.0,0.01147631]
[1766590508646,0.0114746,87149.0,87135.0,0.08045832]
[1766590508860,0.01147499,87146.0,87129.0,0.01147723]
[1766590509067,0.01147552,87142.0,87131.0,0.0116]
[1766590509273,0.06885119,87145.0,87131.0,0.0116]
[1766590509476,0.01147552,87142.0,87131.0,0.0116]
[1766590509678,0.06885245,87143.0,87131.0,0.0116]
[1766590510019,0.01147552,87142.0,87129.0,0.01147723]
[1766590510405,0.01147604,87138.0,87130.0,0.0116]
[1766590510534,0.01147565,87141.0,87130.0,0.0116]
[1766590510735,0.01147604,87138.0,87130.0,0.0116]
[1766590511144,0.01147578,87140.0,87130.0,0.0116]
[1766590511344,0.05737733,87143.0,87130.0,0.0116]
[1766590511545,0.01147539,87143.0,87130.0,0.0230771]
[1766590511751,0.04079144,87171.0,87151.0,0.01147433]
[1766590511955,0.04079144,87171.0,87143.0,0.34425913]
[1766590511956,0.26246,87200.0,87188.0,0.01146946]
[1766590512182,0.26246,87200.0,87188.0,0.01157566]
[1766590512579,0.26246,87200.0,87189.0,0.01146933]
[1766590512807,0.26246,87200.0,87192.0,0.06881303]
[1766590513062,0.26246,87200.0,87195.0,0.01146854]
[1766590513193,0.26246,87215.0,87200.0,0.000439]
[1766590513396,0.26246,87215.0,87203.0,0.01146749]
[1766590513620,0.01146512,87221.0,87202.0,0.01146762]
[1766590513826,0.0116,87215.0,87206.0,0.05733528]
[1766590514031,0.0116,87215.0,87203.0,0.0688044]
[1766590514032,0.0116,87215.0,87204.0,0.01146736]
[1766590514291,0.00011,87206.0,87200.0,0.01146788]
[1766590514496,0.00011,87206.0,87196.0,0.02306841]
[1766590514650,0.0114667,87209.0,87196.0,0.0116]
[1766590514857,0.01146723,87205.0,87190.0,0.0114692]
[1766590515064,0.01146736,87204.0,87190.0,0.0114692]
[1766590515237,0.01146736,87204.0,87188.0,0.06892264]
[1766590515459,0.33126363,87205.0,87188.0,0.01157566]
[1766590515619,0.33126363,87205.0,87192.0,0.05734436]
[1766590515620,0.26246,87205.0,87192.0,0.05734436]
[1766590515819,0.26246,87205.0,87189.0,0.05734664]
[1766590516068,0.26246,87205.0,87193.0,0.01146881]
[1766590516276,0.26246,87205.0,87192.0,0.01146894]
[1766590516772,0.02306736,87204.0,87189.0,0.01146933]
[1766590516936,0.0116,87204.0,87191.0,0.01146907]
[1766590517151,0.01146802,87199.0,87188.0,0.0001062]
[1766590517353,0.05733928,87201.0,87188.0,0.0001062]
[1766590517354,0.00011,87191.0,87188.0,0.0001062]
[1766590517556,0.00011,87191.0,87188.0,2e-07]
[1766590517726,0.0116,87198.0,87188.0,2e-07]
[1766590518379,0.26246,87195.0,87183.0,0.01147012]
[1766590518696,0.0116,87198.0,87196.0,0.05734166]
[1766590518902,0.26246,87206.0,87201.0,0.01146775]
[1766590519016,0.0116,87209.0,87204.0,0.01146736]
[1766590519221,0.0116,87210.0,87203.0,0.01146749]
[1766590519444,0.0116,87210.0,87201.0,0.06880623]
[1766590519671,0.0116,87210.0,87197.0,0.01146828]
[1766590519843,0.0116,87210.0,87196.0,0.06881007]
[1766590520059,0.0116,87210.0,87197.0,0.01146828]
[1766590520255,0.00025137,87216.0,87210.0,0.000545]
[1766590520453,0.01146604,87214.0,87202.0,0.0116]
[1766590520638,0.01146723,87205.0,87190.0,0.0114692]
[1766590520838,0.27392631,87212.0,87193.0,0.0116]
[1766590521081,0.0114671,87206.0,87193.0,0.0116]
[1766590521301,0.05733903,87201.0,87193.0,0.011046]
[1766590521529,0.06881078,87196.0,87187.0,0.0116]
[1766590521747,0.27392802,87199.0,87196.0,9.5e-07]
[1766590521968,0.0116,87200.0,87196.0,9.5e-07]
[1766590522170,0.0116,87207.0,87196.0,9.5e-07]
[1766590522369,0.0116,87207.0,87193.0,0.01146881]
[1766590522500,0.0114671,87206.0,87193.0,0.01146881]
[1766590522702,0.01146736,87204.0,87188.0,0.03219964]
[1766590522946,0.27392749,87203.0,87188.0,0.0436691]
[1766590523168,0.01146723,87205.0,87191.0,0.01146907]
[1766590523688,0.26246,87205.0,87195.0,0.01146854]
[1766590523918,0.26246,87205.0,87198.0,0.06880847]
[1766590524205,0.10320984,87215.0,87198.0,0.06880847]
[1766590524206,0.00025137,87216.0,87202.0,0.10100508]
[1766590524433,0.01171715,87216.0,87202.0,0.03219964]
[1766590524632,0.00025137,87216.0,87202.0,0.03219964]
[1766590524858,0.01146644,87211.0,87202.0,0.03219964]
[1766590525061,0.01146618,87213.0,87202.0,0.03219964]
[1766590525267,0.01146631,87212.0,87202.0,0.03219964]
[1766590525468,0.01146644,87211.0,87202.0,0.03219964]
[1766590525875,0.000544,87202.0,87199.0,0.01146802]
[1766590526018,0.000544,87202.0,87199.0,0.06880803]
[1766590526554,0.0116,87210.0,87202.0,0.01146762]
[1766590526760,0.0116,87210.0,87205.0,0.01146723]
[1766590526965,0.0116,87210.0,87204.0,0.05733652]
[1766590526966,0.65556,87236.0,87219.0,0.01146539]
[1766590527140,0.65556,87236.0,87220.0,0.01146526]
[1766590527141,0.00030615,87223.0,87220.0,0.01146526]
[1766590527344,0.00030615,87223.0,87221.0,0.05732562]
[1766590527548,0.00030615,87223.0,87220.0,0.06879156]
[1766590527757,0.00030615,87223.0,87217.0,0.03219964]
[1766590528176,0.00030615,87223.0,87212.0,0.0116]
[1766590528351,0.00030615,87223.0,87215.0,0.0573295]
[1766590528566,0.00030615,87223.0,87212.0,0.0116]
[1766590528980,0.00030615,87223.0,87214.0,0.01146604]
[1766590529597,0.01146512,87221.0,87212.0,0.0116]
[1766590529800,0.00030615,87223.0,87215.0,0.01146591]
[1766590530158,0.00030615,87223.0,87213.0,0.01146618]
[1766590530675,0.00030615,87223.0,87212.0,0.0116]
[1766590531296,0.00030615,87223.0,87217.0,0.04366529]
[1766590531445,0.0002,87226.0,87221.0,0.06879074]
[1766590531647,0.0116,87229.0,87221.0,0.06879074]
[1766590531648,0.0116,87229.0,87222.0,0.01146499]
[1766590531862,0.0116,87229.0,87226.0,0.01146447]
[1766590532046,0.0116,87229.0,87225.0,0.0114646]
[1766590532431,0.00065218,87229.0,87221.0,0.01146512]
[1766590532565,0.00025155,87224.0,87219.0,0.01156]
[1766590532768,0.00025155,87224.0,87210.0,0.000555]
[1766590532769,0.01171628,87224.0,87210.0,0.000555]
[1766590532966,0.01146552,87218.0,87210.0,0.00066115]
[1766590533177,0.00025155,87224.0,87213.0,0.01146618]
[1766590533178,0.01156,87223.0,87213.0,0.01146618]
[1766590533408,0.01156,87223.0,87220.0,0.01146526]
[1766590533622,0.01156,87223.0,87221.0,0.05732549]
[1766590533924,0.0091202,87229.0,87226.0,0.01146447]
[1766590534156,0.0091202,87229.0,87219.0,0.01146539]
[1766590534157,0.23800131,87250.0,87225.0,0.01156]
[1766590534346,0.01146171,87247.0,87233.0,0.01146355]
[1766590534553,0.05730856,87247.0,87233.0,0.01146355]
[1766590534760,0.01156,87249.0,87235.0,0.01146328]
[1766590534978,0.27509358,87255.0,87245.0,0.03219964]
[1766590534979,0.04588,87255.0,87245.0,0.03219964]
[1766590535126,0.01156,87256.0,87245.0,0.03219964]
[1766590535332,0.01156,87256.0,87241.0,0.01156]
[1766590535497,0.01166118,87251.0,87241.0,0.01156]
[1766590535699,0.0002,87251.0,87241.0,0.01156]
[1766590536078,0.01146171,87247.0,87241.0,0.01156]
[1766590536282,0.01146355,87233.0,87223.0,0.04588]
[1766590536435,0.2381,87250.0,87224.0,0.01156]
[1766590536436,0.0114625,87241.0,87224.0,0.01156]
[1766590536755,0.2381,87250.0,87224.0,0.01156]
[1766590536756,0.01146407,87229.0,87224.0,0.01156]
[1766590536980,0.05732112,87228.0,87225.0,0.01156]
[1766590537170,0.01146407,87229.0,87225.0,0.01156]
[1766590537386,0.01146368,87232.0,87225.0,0.01156]
[1766590537576,0.06878558,87228.0,87225.0,0.01156]
[1766590537956,0.03437709,87228.0,87225.0,0.01156]
[1766590538161,0.0114642,87228.0,87225.0,0.01156]
[1766590538429,0.06878398,87230.0,87225.0,0.01156]
[1766590538625,0.01146381,87231.0,87225.0,0.01156]
[1766590538783,0.01146394,87230.0,87225.0,0.01156]
[1766590539148,0.0114642,87228.0,87225.0,0.01156]
[1766590539353,0.05732042,87229.0,87225.0,0.01156]
[1766590539631,0.06878812,87225.0,87224.0,0.01156]
[1766590539982,0.06878669,87227.0,87224.0,0.01156]
[1766590539983,0.05732239,87226.0,87224.0,0.01156]
[1766590540611,0.06878542,87228.0,87224.0,0.01156]
[1766590540820,0.01146434,87227.0,87224.0,0.01156]
[1766590541021,0.01146434,87227.0,87050.0,7e-05]
[1766590541022,0.05732627,87221.0,87210.0,0.000555]
[1766590541230,0.01146526,87220.0,87210.0,0.000555]
[1766590541434,0.01146526,87220.0,87167.0,0.06883319]
[1766590541435,0.01147012,87183.0,87167.0,0.06883319]
[1766590541599,0.23785,87197.0,87167.0,0.06883319]
[1766590541600,0.01156,87191.0,87176.0,0.01147104]
[1766590541798,0.01156,87192.0,87177.0,0.01147091]
[1766590542005,0.01156,87192.0,87183.0,0.01147012]
[1766590542211,0.02302802,87199.0,87183.0,0.00035405]
[1766590542392,0.02302802,87199.0,87184.0,0.01146999]
[1766590542596,0.00011,87206.0,87198.0,0.01146815]
[1766590542849,0.00011,87206.0,87186.0,0.08389964]
[1766590542850,0.06880193,87207.0,87191.0,0.01146907]
[1766590543069,0.0116,87208.0,87186.0,0.08389964]
[1766590543210,0.0116,87208.0,87187.0,0.0116]
[1766590543555,0.01146907,87191.0,87183.0,0.00035405]
[1766590543696,0.0114692,87190.0,87183.0,0.00035405]
[1766590543899,0.01146959,87187.0,87183.0,0.00035405]
[1766590544101,0.05734957,87185.0,87183.0,1e-08]
[1766590544561,0.08041913,87186.0,87140.0,0.03219964]
[1766590544562,0.01147131,87174.0,87162.0,0.0116]
[1766590544780,0.01147196,87169.0,87162.0,0.00010615]
[1766590544988,0.01147223,87167.0,87162.0,0.00010615]
[1766590545206,0.01147249,87165.0,87162.0,0.00010615]
[1766590545536,0.01147302,87161.0,87138.0,0.22951902]
[1766590545692,0.01147275,87163.0,87152.0,0.00011]
[1766590545892,0.23785,87171.0,87155.0,0.01147381]
[1766590546097,0.0116,87166.0,87156.0,0.01147367]
[1766590546668,0.01147262,87164.0,87152.0,0.00011]
[1766590546922,0.06883603,87164.0,87152.0,0.00011]
[1766590547153,0.01147275,87163.0,87152.0,0.00011]
[1766590547337,0.01147262,87164.0,87152.0,0.00011]
[1766590547868,0.0114745,87166.0,87152.0,0.0115842]
[1766590548069,0.0116,87174.0,87156.0,0.01147367]
[1766590548283,0.0116,87174.0,87163.0,0.01147275]
[1766590548488,0.0116,87174.0,87165.0,0.01147249]
[1766590548692,0.01147025,87182.0,87166.0,0.00113823]
[1766590548912,0.05735227,87181.0,87165.0,0.06883477]
[1766590549114,0.0116,87184.0,87170.0,0.01147183]
[1766590549291,0.0116,87184.0,87168.0,0.01147209]
[1766590549521,0.0116,87184.0,87169.0,0.01147196]
[1766590549725,0.05735359,87179.0,87168.0,0.00010626]
[1766590549968,0.01147091,87177.0,87168.0,0.01170626]
[1766590550211,0.05735207,87181.0,87168.0,0.01170626]
[1766590550567,0.06882172,87182.0,87168.0,0.01170626]
[1766590550917,0.01147025,87182.0,87169.0,0.01147196]
[1766590551111,0.01147012,87183.0,87169.0,0.01147196]
[1766590551318,0.0116,87184.0,87168.0,0.01170626]
[1766590551516,0.0116,87184.0,87171.0,0.0114717]
[1766590551757,0.0116,87184.0,87171.0,0.06883002]
[1766590551993,0.0116,87184.0,87173.0,0.01147144]
[1766590552198,0.0116,87184.0,87176.0,0.01147104]
[1766590552536,0.0116,87184.0,87172.0,0.01147157]
[1766590552739,0.01147012,87183.0,87165.0,0.01147249]
[1766590552972,0.01147025,87182.0,87168.0,0.02317835]
[1766590553142,0.01147012,87183.0,87170.0,0.01147183]
[1766590553358,0.01147091,87177.0,87168.0,0.01170626]
[1766590553567,0.01147117,87175.0,87168.0,0.01170626]
[1766590553783,0.05735958,87170.0,87161.0,0.01156]
[1766590553986,0.01147262,87164.0,87154.0,0.01156]
[1766590554243,0.23785,87164.0,87155.0,0.01147381]
[1766590554467,0.02313791,87170.0,87155.0,0.01147381]
[1766590554639,0.01166608,87170.0,87156.0,0.01147367]
[1766590554837,0.01147209,87168.0,87154.0,0.01156]
[1766590555062,0.01147262,87164.0,87154.0,0.01156]
[1766590555223,0.06892387,87163.0,87152.0,0.00011]
[1766590555432,0.01147288,87162.0,87152.0,0.00011]
[1766590555636,0.06892387,87163.0,87152.0,0.00011]
[1766590555637,0.01156,87163.0,87152.0,0.00011]
[1766590555850,0.01156,87163.0,87153.0,0.05737034]
[1766590556048,0.01156,87163.0,87160.0,0.05736557]
[1766590556248,0.01156,87164.0,87160.0,0.06883872]
[1766590556773,0.00010608,87170.0,87161.0,0.01147302]
[1766590556946,0.01156,87168.0,87162.0,0.01147288]
[1766590557192,0.01156,87168.0,87155.0,0.06884272]
[1766590557390,0.01156,87168.0,87156.0,0.01147367]
[1766590557924,0.01147249,87165.0,87152.0,0.0115842]
[1766590558058,0.06883531,87165.0,87152.0,0.00011]
[1766590558265,0.05736225,87166.0,87152.0,0.00011]
[1766590558471,0.01147249,87165.0,87152.0,0.0115842]
[1766590558894,0.01147275,87163.0,87152.0,0.00011]
[1766590559213,0.05736707,87159.0,87152.0,0.00011]
[1766590559432,0.01147407,87153.0,87139.0,0.0116]
[1766590559603,0.0116,87153.0,87139.0,0.02307591]
[1766590559827,0.23372,87158.0,87139.0,0.0116]
[1766590559999,0.01147473,87148.0,87139.0,0.0116]
[1766590560198,0.01147486,87147.0,87142.0,0.00011]
[1766590560426,0.23372,87147.0,87133.0,0.0116]
[1766590561051,0.05737695,87143.0,87133.0,0.0116]
[1766590561258,0.05737135,87152.0,87136.0,0.01147631]
[1766590561458,0.23372,87153.0,87138.0,0.05738014]
[1766590561623,0.0116,87151.0,87143.0,0.01147539]
[1766590561966,0.0116,87151.0,87134.0,0.01147657]
[1766590562110,0.06897178,87151.0,87135.0,0.05738222]
[1766590562306,0.02307433,87151.0,87137.0,0.06885704]
[1766590562509,0.23372,87153.0,87146.0,0.01147499]
[1766590562719,0.0116,87161.0,87149.0,0.0114746]
[1766590562961,0.0116,87161.0,87145.0,0.01147512]
[1766590563160,0.0116,87161.0,87146.0,0.06884987]
[1766590563161,0.01147328,87159.0,87146.0,0.06884987]
[1766590563317,0.01147328,87159.0,87145.0,0.01147512]
[1766590563557,0.0116,87161.0,87158.0,0.01147341]
[1766590563792,0.0116,87161.0,87152.0,0.0114742]
[1766590563995,0.01171,87162.0,87154.0,0.01147394]
[1766590564398,0.01171,87162.0,87149.0,0.06884736]
[1766590564599,0.02318288,87162.0,87148.0,0.01147473]
[1766590564808,0.01147354,87157.0,87142.0,0.03219964]
[1766590565046,0.01147367,87156.0,87144.0,0.02307525]
[1766590565197,0.01147367,87156.0,87144.0,0.0116]
[1766590565399,0.01147354,87157.0,87145.0,0.01147512]
[1766590565603,0.01147354,87157.0,87144.0,0.02307525]
[1766590565777,0.01147341,87158.0,87145.0,0.01147512]
[1766590565967,0.06884099,87159.0,87146.0,0.01147499]
[1766590566173,0.01147328,87159.0,87146.0,0.01147499]
[1766590566369,0.23372,87161.0,87147.0,0.01147486]
[1766590566570,0.23372,87161.0,87144.0,0.0116]
[1766590566906,0.23372,87161.0,87147.0,0.01147486]
[1766590567256,0.23372,87161.0,87149.0,0.0114746]
[1766590567449,0.23372,87161.0,87148.0,0.01147473]
[1766590567450,0.06882415,87179.0,87161.0,0.01147302]
[1766590567653,0.0116,87178.0,87170.0,0.01147183]
[1766590567946,0.24532,87178.0,87171.0,0.0114717]
[1766590568151,0.23372,87178.0,87173.0,0.01147144]
[1766590568355,0.23372,87178.0,87172.0,0.01147157]
[1766590568585,0.21877569,87178.0,87172.0,0.01147157]
[1766590568831,0.21682176,87178.0,87175.0,0.01147117]
[1766590569017,0.21682176,87178.0,87175.0,0.0688267]
[1766590569214,0.21682176,87178.0,87168.0,0.01147209]
[1766590569389,0.21682176,87178.0,87166.0,0.0116]
[1766590569590,0.21682176,87178.0,87167.0,0.01147223]
[1766590569795,0.21682176,87178.0,87168.0,0.06883247]
[1766590569999,0.21682176,87178.0,87170.0,0.06883098]
[1766590570186,0.21682176,87178.0,87170.0,0.01147183]
[1766590570682,0.01147091,87177.0,87166.0,0.0116]
[1766590571016,0.23372,87171.0,87154.0,0.0116]
[1766590571187,0.23372,87171.0,87156.0,0.01147367]
[1766590571598,0.23372,87171.0,87160.0,0.01147315]
[1766590571811,0.30254002,87184.0,87170.0,0.01147183]
[1766590572021,0.24532,87177.0,87167.0,0.01147223]
[1766590572241,0.24532,87177.0,87165.0,0.06883493]
[1766590573088,0.24532,87177.0,87161.0,0.0116]
[1766590573293,0.01147196,87169.0,87161.0,0.0116]
[1766590573708,0.01147209,87168.0,87161.0,0.0116]
[1766590573919,0.29108398,87163.0,87153.0,0.00011]
[1766590574130,0.01147315,87160.0,87153.0,0.00011]
[1766590574975,0.24519302,87161.0,87153.0,0.00011]
[1766590575398,0.01147315,87160.0,87153.0,0.00011]
[1766590575605,0.06884268,87156.0,87153.0,0.00011]
[1766590575811,0.05736971,87155.0,87153.0,0.00011]
[1766590576274,0.05736971,87155.0,87140.0,0.01147578]
[1766590576275,0.2451942,87152.0,87140.0,0.01147578]
[1766590576508,0.01156,87156.0,87150.0,0.06884619]
[1766590576739,0.23372,87162.0,87154.0,0.01147394]
[1766590576969,0.24528,87162.0,87150.0,0.01147446]
[1766590577202,0.24528,87162.0,87149.0,0.0114746]
[1766590577458,0.25675288,87162.0,87149.0,0.0688475]
[1766590577685,0.24528,87162.0,87150.0,0.01147446]
[1766590578170,0.00011,87167.0,87149.0,0.22949147]
[1766590578394,0.01156,87170.0,87161.0,0.01147302]
[1766590578651,0.01156,87170.0,87163.0,0.05736344]
[1766590578898,0.01156,87170.0,87165.0,0.01147249]
[1766590579130,0.01,87177.0,87170.0,0.01147183]
[1766590579367,0.01,87177.0,87173.0,0.06882808]
[1766590579368,0.02156,87177.0,87173.0,0.06882808]
[1766590579584,0.02156,87177.0,87171.0,0.0114717]
[1766590579585,0.01,87177.0,87171.0,0.06882958]
[1766590579799,0.01,87177.0,87171.0,0.0114717]
[1766590579972,0.01,87177.0,87168.0,0.01147209]
[1766590580152,0.01,87177.0,87165.0,0.01147249]
[1766590580346,0.01147131,87174.0,87166.0,0.00376153]
[1766590580546,0.01,87177.0,87166.0,0.00376153]
[1766590580752,0.07882589,87177.0,87166.0,0.00376153]
[1766590581120,0.01147104,87176.0,87166.0,0.00376153]
[1766590581316,0.23372,87176.0,87163.0,0.06883652]
[1766590581521,0.23372,87176.0,87165.0,0.01147249]
[1766590581736,0.23372,87176.0,87160.0,0.01147315]
[1766590581737,0.23372,87171.0,87155.0,0.01147381]
[1766590581946,0.23372,87168.0,87150.0,0.01147446]
[1766590582150,0.23372,87162.0,87151.0,0.01156]
[1766590582409,0.23372,87162.0,87152.0,0.0114742]
[1766590582612,0.23372,87162.0,87155.0,0.05736846]
[1766590582818,0.23372,87162.0,87151.0,0.01156]
[1766590583032,0.23372,87162.0,87152.0,0.0114742]
[1766590583237,0.23372,87162.0,87153.0,0.01147407]
[1766590583451,0.23372,87162.0,87152.0,0.06884522]
[1766590583877,0.06883418,87166.0,87152.0,0.06884522]
[1766590584087,0.01147262,87164.0,87151.0,0.02303433]
[1766590584299,0.01156,87166.0,87151.0,0.02303433]
[1766590584703,0.01147262,87164.0,87151.0,0.02303433]
[1766590584939,0.01147249,87165.0,87152.0,0.0114742]
[1766590585143,0.01147262,87164.0,87152.0,0.0114742]
[1766590585344,0.23372,87164.0,87152.0,0.0114742]
[1766590585545,0.24519262,87164.0,87151.0,0.02303433]
[1766590585717,0.01147275,87163.0,87151.0,0.01156]
[1766590585934,0.23372,87163.0,87151.0,0.01156]
[1766590586098,0.23372,87163.0,87157.0,0.01147354]
[1766590586304,0.49092486,87199.0,87168.0,0.01147209]
[1766590586305,0.23372,87174.0,87168.0,0.01147209]
[1766590586564,0.23372,87174.0,87164.0,0.01147262]
[1766590586717,0.23372,87174.0,87166.0,0.06883417]
[1766590586919,0.23372,87174.0,87168.0,0.01147209]
[1766590587259,0.23372,87174.0,87170.0,0.01147183]
[1766590587459,0.23372,87174.0,87168.0,0.0688325]
[1766590587660,0.23372,87174.0,87171.0,0.06883003]
[1766590588414,0.23372,87174.0,87167.0,0.01147223]
[1766590588640,0.23372,87174.0,87166.0,0.01147236]
[1766590589079,0.23372,87174.0,87168.0,0.01147209]
[1766590589312,0.23372,87174.0,87172.0,0.05735737]
[1766590589521,0.01156,87179.0,87170.0,0.01147183]
[1766590589654,0.01156,87179.0,87168.0,0.24091351]
[1766590589655,0.01156,87179.0,87168.0,0.01147209]
[1766590589998,0.01156,87179.0,87169.0,0.01147196]
[1766590590198,0.01156,87179.0,87168.0,0.01147209]
[1766590590497,0.01147117,87175.0,87170.0,0.01156]
[1766590591125,0.01147144,87173.0,87170.0,0.01156]
[1766590591904,0.22535144,87173.0,87160.0,0.00011]
[1766590592063,0.06883425,87166.0,87161.0,0.01156]
[1766590592262,0.01147275,87163.0,87161.0,0.01156]
[1766590592449,0.21388,87164.0,87161.0,0.01156]
[1766590593194,0.28271596,87164.0,87161.0,0.01156]
[1766590593397,0.22535302,87161.0,87149.0,0.1485]
[1766590593602,0.00011,87197.0,87137.0,0.01147618]
[1766590593603,0.01147407,87153.0,87137.0,0.01147618]
[1766590593836,0.01147446,87150.0,87145.0,0.01156]
[1766590593999,0.28272807,87150.0,87145.0,0.01156]
[1766590594196,0.22535446,87150.0,87145.0,0.01156]
[1766590594440,0.21388,87150.0,87145.0,0.01156]
[1766590595192,0.28272683,87150.0,87145.0,0.01156]
[1766590595442,0.05737366,87148.0,87145.0,0.01156]
[1766590595741,0.01147407,87153.0,87126.0,0.26175092]
[1766590595742,0.21388,87139.0,87132.0,0.01156]
[1766590596728,0.21388,87139.0,87132.0,0.02303683]
[1766590597087,0.21388,87139.0,87132.0,0.01156]
[1766590597289,0.21901,87139.0,87127.0,0.01147749]
[1766590597700,0.21901,87139.0,87127.0,0.06886488]
[1766590597923,0.21901,87139.0,87127.0,0.01147749]
[1766590598334,0.01147604,87138.0,87125.0,0.01147776]
[1766590598535,0.23048591,87139.0,87126.0,0.01147763]
[1766590598978,0.21901,87139.0,87126.0,0.01147763]
[1766590599536,0.23048591,87139.0,87127.0,0.01147749]
[1766590599738,0.21901,87139.0,87130.0,0.0114771]
[1766590599939,0.21901,87139.0,87128.0,0.06886419]
[1766590600357,0.21901,87139.0,87129.0,0.01147723]
[1766590600990,0.21901,87139.0,87130.0,0.0114771]
[1766590601212,0.21901,87139.0,87130.0,0.08042256]
[1766590601393,0.21901,87139.0,87125.0,0.01156]
[1766590601600,0.21901,87139.0,87128.0,0.06886408]
[1766590601808,0.21901,87139.0,87128.0,0.01147736]
[1766590602020,0.21901,87139.0,87130.0,0.0114771]
[1766590602378,0.21901,87139.0,87127.0,0.01147749]
[1766590602584,0.06885367,87142.0,87119.0,0.01147855]
[1766590602585,0.05738406,87133.0,87119.0,0.01147855]
[1766590602787,0.21901,87128.0,87119.0,0.00010602]
[1766590603147,0.01192153,87119.0,87112.0,0.00011]
[1766590603284,0.01147894,87116.0,87112.0,0.01167]
[1766590603486,0.28788388,87116.0,87112.0,0.01167]
[1766590603673,0.01147921,87114.0,87098.0,0.01148131]
[1766590603869,0.24105473,87118.0,87061.0,1.14861308]
[1766590603870,0.01148079,87102.0,87093.0,0.01156]
[1766590604126,0.21901,87097.0,87084.0,0.01156]
[1766590604290,0.000443,87091.0,87084.0,0.01156]
[1766590604495,0.21901,87090.0,87084.0,0.01156]
[1766590604872,0.05741512,87086.0,87084.0,0.01156]
[1766590605095,0.21901,87090.0,87084.0,0.01156]
[1766590605294,0.000443,87084.0,87078.0,0.01156]
[1766590605490,0.219453,87084.0,87078.0,0.01191412]
[1766590605718,0.21901,87084.0,87079.0,0.05741912]
[1766590605891,0.21901,87084.0,87078.0,0.00035412]
[1766590606094,0.23049303,87085.0,87078.0,0.00035412]
[1766590606332,0.21901,87082.0,87078.0,4.12e-06]
[1766590607621,0.23049342,87082.0,87078.0,4.12e-06]
[1766590607821,0.21901,87081.0,87078.0,4.12e-06]
[1766590608026,0.05741875,87080.0,87078.0,4.12e-06]
[1766590608233,0.21901,87079.0,87078.0,4.12e-06]
[1766590608438,0.218904,87079.0,87078.0,4.12e-06]
[1766590609953,0.218904,87079.0,87078.0,3.83e-06]
[1766590610591,0.27632312,87079.0,87078.0,3.83e-06]
[1766590612905,0.01148633,87060.0,87047.0,0.01196]
[1766590613053,0.21901,87056.0,87049.0,0.00010634]
[1766590613250,0.21846,87056.0,87049.0,0.00010634]
[1766590613455,0.04162887,87056.0,87049.0,0.00010634]
[1766590613682,0.02304633,87060.0,87049.0,0.00010634]
[1766590613683,0.01148646,87059.0,87049.0,0.00010634]
[1766590613904,0.01148699,87055.0,87049.0,0.00010634]
[1766590614126,0.21901,87051.0,87049.0,3.4e-07]
[1766590614322,0.21901,87051.0,87048.0,3.4e-07]